fUSD/lending_fUSD_20241221
["ID","MTS","AMOUNT","RATE_DAILY","PERIOD"]
[346201354,1734773477005,-500.0,0.0002,2]
[346201355,1734773477015,-500.0,0.0002,2]
[346201356,1734773477035,-1010.69,0.0002,2]
[346201357,1734773477045,-751.14,0.0002,2]
[346201358,1734773477055,-3462.44,0.0002,2]
[346201359,1734773477067,-3160.9,0.0002,2]
[346201360,1734773477077,-500.0,0.0002,2]
[346201361,1734773477086,-24645.27,0.0002,2]
[346201362,1734773477096,-8247.4,0.0002,2]
[346201363,1734773477106,-500.0,0.0002,2]
[346201364,1734773477115,-500.0,0.0002,2]
[346201365,1734773477125,-6261.44,0.0002,2]
[346201366,1734773477135,-1656.5,0.0002,2]
[346201367,1734773477144,-781.22,0.0002,2]
[346201368,1734773477154,-500.0,0.0002,2]
[346201369,1734773477163,-3393.2,0.0002,2]
[346201370,1734773477173,-500.0,0.0002,2]
[346201371,1734773477182,-500.0,0.0002,2]
[346201372,1734773477192,-500.0,0.0002,2]
[346201373,1734773477201,-1877.49,0.0002,2]
[346201374,1734773477210,-500.0,0.0002,2]
[346201375,1734773477220,-1000.0,0.0002,2]
[346201376,1734773477231,-2708.81,0.0002,2]
[346201377,1734773477242,-1267.07,0.0002,2]
[346201378,1734773477253,-1040.82,0.0002,2]
[346201379,1734773477262,-500.0,0.0002,2]
[346201380,1734773477278,-767.73,0.0002,2]
[346201381,1734773477287,-500.0,0.0002,2]
[346201382,1734773477297,-500.0,0.0002,2]
[346201383,1734773477307,-562.79,0.0002,2]
[346201384,1734773477317,-8117.57,0.0002,2]
[346201385,1734773477328,-500.0,0.0002,2]
[346201386,1734773477339,-565.53233825,0.0002,2]
[346201387,1734773477348,-1296.7,0.0002,2]
[346201388,1734773477358,-3164.99,0.0002,2]
[346201389,1734773477367,-2412.38,0.0002,2]
[346201390,1734773477377,-500.0,0.0002,2]
[346201391,1734773477387,-704.84,0.0002,2]
[346201392,1734773477397,-589.2,0.0002,2]
[346201393,1734773477407,-2899.73,0.0002,2]
[346201394,1734773477417,-862.32,0.0002,2]
[346201395,1734773477426,-500.0,0.0002,2]
[346201396,1734773477437,-500.0,0.0002,2]
[346201397,1734773477446,-500.0,0.0002,2]
[346201398,1734773477455,-812.4,0.0002,2]
[346201399,1734773477465,-500.0,0.0002,2]
[346201400,1734773477475,-634.56,0.0002,2]
[346201401,1734773477484,-500.0,0.0002,2]
[346201402,1734773477494,-768.33,0.0002,2]
[346201403,1734773477503,-690.88,0.0002,2]
[346201404,1734773477514,-1896.12,0.0002,2]
[346201405,1734773477532,-1858.22,0.0002,2]
[346201406,1734773477544,-500.0,0.0002,2]
[346201407,1734773477553,-884.99,0.0002,2]
[346201408,1734773477563,-500.0,0.0002,2]
[346201409,1734773477572,-500.0,0.0002,2]
[346201410,1734773477582,-500.0,0.0002,2]
[346201411,1734773477591,-500.0,0.0002,2]
[346201412,1734773477602,-1376.83,0.0002,2]
[346201413,1734773477612,-500.0,0.0002,2]
[346201414,1734773477621,-500.0,0.0002,2]
[346201415,1734773477631,-517.669,0.0002,2]
[346201416,1734773477641,-517.669,0.0002,2]
[346201417,1734773477650,-517.669,0.0002,2]
[346201418,1734773477660,-517.669,0.0002,2]
[346201419,1734773477670,-500.0,0.0002,2]
[346201420,1734773477680,-517.669,0.0002,2]
[346201421,1734773477690,-500.0,0.0002,2]
[346201422,1734773477699,-517.669,0.0002,2]
[346201423,1734773477709,-573.61,0.0002,2]
[346201424,1734773477719,-517.669,0.0002,2]
[346201425,1734773477729,-517.669,0.0002,2]
[346201426,1734773477739,-500.0,0.0002,2]
[346201427,1734773477749,-517.669,0.0002,2]
[346201428,1734773477759,-517.669,0.0002,2]
[346201429,1734773477772,-1509.18,0.0002,2]
[346201430,1734773477785,-500.0,0.0002,2]
[346201431,1734773477795,-538.56,0.0002,2]
[346201432,1734773477805,-500.0,0.0002,2]
[346201433,1734773477815,-500.0,0.00020017,2]
[346201434,1734773477825,-1000.0,0.00020021,2]
[346201435,1734773477836,-1000.0,0.00020021,2]
[346201436,1734773477846,-347.78347158,0.0002007,2]
[346201437,1734773477856,-396.71515949,0.00020098,2]
[346201438,1734773477866,-258.83148079,0.00020098,2]
[346201439,1734773477875,-200.0,0.00020099,2]
[346201440,1734773477885,-200.0,0.00020099,2]
[346201441,1734773477896,-500.0,0.00020135,2]
[346201442,1734773477906,-166.8,0.00020152,2]
[346201443,1734773477916,-150.0,0.00020219,4]
[346201444,1734773477925,-150.0,0.00020219,4]
[346201445,1734773477936,-150.0,0.00020219,4]
[346201446,1734773477946,-150.0,0.00020219,4]
[346201447,1734773477957,-710.0,0.00020222,2]
[346201448,1734773477967,-3526.735,0.00020222,2]
[346201449,1734773477977,-218.709,0.00020222,2]
[346201450,1734773477987,-500.0,0.00020272,2]
[346201451,1734773477997,-500.0,0.00020272,2]
[346201452,1734773478007,-501.92293948,0.00020273,2]
[346201453,1734773478017,-256.8844042,0.00020273,2]
[346201454,1734773478027,-500.0,0.00020273,2]
[346201455,1734773478037,-500.0,0.00020273,2]
[346201456,1734773478047,-500.0,0.00020273,2]
[346201457,1734773478057,-515.37,0.00020273,2]
[346201458,1734773478066,-500.0,0.00020273,2]
[346201459,1734773478076,-229.27575194,0.00020273,2]
[346201460,1734773478086,-500.0,0.00020273,2]
[346201461,1734773478096,-500.0,0.00020273,2]
[346201462,1734773478106,-500.0,0.00020273,2]
[346201463,1734773478116,-500.0,0.00020273,2]
[346201464,1734773478126,-500.0,0.00020273,2]
[346201465,1734773478136,-500.0,0.00020273,2]
[346201466,1734773478146,-500.0,0.00020273,2]
[346201467,1734773478156,-226.99613111,0.00020273,2]
[346201468,1734773478166,-503.75926754,0.00020273,2]
[346201469,1734773478176,-500.0,0.00020273,2]
[346201470,1734773478187,-500.0,0.00020273,2]
[346201471,1734773478197,-500.0,0.00020273,2]
[346201472,1734773478207,-500.0,0.00020273,2]
[346201473,1734773478218,-505.54809597,0.00020273,2]
[346201474,1734773478228,-316.58347106,0.00020273,2]
[346201475,1734773478241,-503.38656719,0.00020273,2]
[346201476,1734773478252,-500.0,0.00020273,2]
[346201477,1734773478262,-500.0,0.00020273,2]
[346201478,1734773478277,-500.0,0.00020273,2]
[346201479,1734773478287,-500.0,0.00020273,2]
[346201480,1734773478298,-500.0,0.00020273,2]
[346201481,1734773478308,-438.00058559,0.00020273,2]
[346201482,1734773478320,-550.11217956,0.00020273,2]
[346201483,1734773478330,-500.0,0.00020273,2]
[346201484,1734773478340,-500.0,0.00020273,2]
[346201485,1734773478351,-500.0,0.00020273,2]
[346201486,1734773478360,-500.0,0.00020273,2]
[346201487,1734773478371,-500.0,0.00020273,2]
[346201488,1734773478380,-500.0,0.00020273,2]
[346201489,1734773478391,-500.0,0.00020273,2]
[346201490,1734773478401,-500.0,0.00020273,2]
[346201491,1734773478411,-500.0,0.00020273,2]
[346201492,1734773478421,-500.0,0.00020273,2]
[346201493,1734773478431,-500.0,0.00020273,2]
[346201494,1734773478441,-500.0,0.00020273,2]
[346201495,1734773478451,-500.0,0.00020273,2]
[346201496,1734773478460,-500.0,0.00020273,2]
[346201497,1734773478470,-500.0,0.00020273,2]
[346201498,1734773478480,-500.0,0.00020273,2]
[346201499,1734773478490,-525.22,0.00020273,2]
[346201500,1734773478500,-500.0,0.00020273,2]
[346201501,1734773478510,-500.0,0.00020273,2]
[346201502,1734773478525,-500.0,0.00020273,2]
[346201503,1734773478535,-500.0,0.00020273,2]
[346201504,1734773478545,-500.0,0.00020273,2]
[346201505,1734773478555,-500.0,0.00020273,2]
[346201506,1734773478565,-500.0,0.00020273,2]
[346201507,1734773478575,-500.0,0.00020273,2]
[346201508,1734773478585,-500.0,0.00020273,2]
[346201509,1734773478594,-500.0,0.00020273,2]
[346201510,1734773478604,-500.0,0.00020273,2]
[346201511,1734773478615,-500.0,0.00020273,2]
[346201512,1734773478626,-500.0,0.00020273,2]
[346201513,1734773478636,-500.0,0.00020273,2]
[346201514,1734773478647,-500.0,0.00020273,2]
[346201515,1734773478656,-500.0,0.00020273,2]
[346201516,1734773478666,-555.37,0.00020273,2]
[346201517,1734773478676,-500.0,0.00020273,2]
[346201518,1734773478685,-500.0,0.00020273,2]
[346201519,1734773478695,-500.0,0.00020273,2]
[346201520,1734773478705,-500.0,0.00020273,2]
[346201521,1734773478715,-500.0,0.00020273,2]
[346201522,1734773478725,-500.0,0.00020273,2]
[346201523,1734773478735,-500.0,0.00020273,2]
[346201524,1734773478745,-500.0,0.00020273,2]
[346201525,1734773478755,-500.0,0.00020273,2]
[346201526,1734773478765,-500.0,0.00020273,2]
[346201527,1734773478783,-500.0,0.00020273,2]
[346201528,1734773478793,-500.0,0.00020273,2]
[346201529,1734773478803,-462.12,0.00020273,2]
[346201530,1734773478813,-500.0,0.00020273,2]
[346201531,1734773478824,-500.0,0.00020273,2]
[346201532,1734773478834,-500.0,0.00020273,2]
[346201533,1734773478844,-500.0,0.00020273,2]
[346201534,1734773478855,-500.0,0.00020273,2]
[346201535,1734773478865,-500.0,0.00020273,2]
[346201536,1734773478875,-650.53,0.00020273,2]
[346201537,1734773478886,-1245.48,0.00020273,2]
[346201538,1734773478896,-601.3,0.00020273,2]
[346201539,1734773478907,-500.0,0.00020273,2]
[346201540,1734773478916,-500.0,0.00020273,2]
[346201541,1734773478926,-586.91,0.00020273,2]
[346201542,1734773478936,-584.9,0.00020273,2]
[346201543,1734773478946,-500.0,0.00020273,2]
[346201544,1734773478956,-500.0,0.00020273,2]
[346201545,1734773478966,-601.62,0.00020273,2]
[346201546,1734773478976,-500.0,0.00020273,2]
[346201547,1734773478986,-500.0,0.00020273,2]
[346201548,1734773478996,-912.12,0.00020273,2]
[346201549,1734773479006,-532.02,0.00020273,2]
[346201550,1734773479016,-500.0,0.00020273,2]
[346201551,1734773479030,-500.0,0.00020273,2]
[346201552,1734773479040,-500.0,0.00020273,2]
[346201553,1734773479050,-500.0,0.00020273,2]
[346201554,1734773479060,-500.0,0.00020273,2]
[346201555,1734773479262,-398.37686429,0.00020273,2]
[346201556,1734773479275,-500.0,0.00020273,2]
[346201557,1734773479284,-500.0,0.00020273,2]
[346201558,1734773479293,-527.83534333,0.00020273,2]
[346201559,1734773479302,-618.06,0.00020273,2]
[346201560,1734773479312,-429.02549793,0.00020273,2]
[346201561,1734773479322,-500.0,0.00020273,2]
[346201562,1734773479331,-500.0,0.00020273,2]
[346201563,1734773479341,-543.65,0.00020273,2]
[346201564,1734773479351,-500.0,0.00020273,2]
[346201565,1734773479360,-500.0,0.00020273,2]
[346201566,1734773479370,-729.77,0.00020273,2]
[346201567,1734773479380,-500.0,0.00020273,2]
[346201568,1734773479389,-500.0,0.00020273,2]
[346201569,1734773479399,-500.0,0.00020273,2]
[346201570,1734773479409,-500.0,0.00020273,2]
[346201571,1734773479418,-834.73,0.00020273,2]
[346201572,1734773479428,-702.21,0.00020273,2]
[346201573,1734773479437,-568.0,0.00020273,2]
[346201574,1734773479447,-500.0,0.00020273,2]
[346201575,1734773479456,-500.0,0.00020273,2]
[346201576,1734773479467,-500.0,0.00020273,2]
[346201577,1734773479477,-769.61,0.00020273,2]
[346201578,1734773479487,-500.0,0.00020273,2]
[346201579,1734773479497,-498.90339646,0.00020273,2]
[346201580,1734773479506,-500.0,0.00020273,2]
[346201581,1734773479516,-1002.7,0.00020273,2]
[346201582,1734773479530,-507.9,0.00020273,2]
[346201583,1734773479541,-500.0,0.00020273,2]
[346201584,1734773479551,-500.0,0.00020273,2]
[346201585,1734773479562,-905.36,0.00020273,2]
[346201586,1734773479572,-500.0,0.00020273,2]
[346201587,1734773479582,-500.0,0.00020273,2]
[346201588,1734773479592,-490.45459,0.00020273,2]
[346201589,1734773479602,-585.09895861,0.00020273,2]
[346201590,1734773479612,-500.0,0.00020273,2]
[346201591,1734773479622,-500.0,0.00020273,2]
[346201592,1734773479632,-685.89,0.00020273,2]
[346201593,1734773479642,-847.86,0.00020273,2]
[346201594,1734773479651,-500.0,0.00020273,2]
[346201595,1734773479661,-902.93,0.00020273,2]
[346201596,1734773479671,-596.7,0.00020273,2]
[346201597,1734773479681,-500.0,0.00020273,2]
[346201598,1734773479691,-500.0,0.00020273,2]
[346201599,1734773479700,-500.0,0.00020273,2]
[346201600,1734773479710,-1374.67,0.00020273,2]
[346201601,1734773479720,-506.13,0.00020273,2]
[346201602,1734773479729,-547.02,0.00020273,2]
[346201603,1734773479740,-500.0,0.00020273,2]
[346201604,1734773479750,-500.0,0.00020273,2]
[346201605,1734773479760,-1494.46,0.00020273,2]
[346201606,1734773479773,-500.0,0.00020273,2]
[346201607,1734773479783,-500.0,0.00020273,2]
[346201608,1734773479792,-634.46,0.00020273,2]
[346201609,1734773479802,-813.36,0.00020273,2]
[346201610,1734773479811,-500.0,0.00020273,2]
[346201611,1734773479821,-1810.25,0.00020273,2]
[346201612,1734773479831,-739.39,0.00020273,2]
[346201613,1734773479841,-500.0,0.00020273,2]
[346201614,1734773479851,-500.0,0.00020273,2]
[346201615,1734773479860,-500.0,0.00020273,2]
[346201616,1734773479870,-907.54,0.00020273,2]
[346201617,1734773479879,-589.82,0.00020273,2]
[346201618,1734773479888,-500.0,0.00020273,2]
[346201619,1734773479898,-1931.15,0.00020273,2]
[346201620,1734773479908,-527.82,0.00020273,2]
[346201621,1734773479918,-500.0,0.00020273,2]
[346201622,1734773479927,-614.04,0.00020273,2]
[346201623,1734773479937,-500.0,0.00020273,2]
[346201624,1734773479947,-500.0,0.00020273,2]
[346201625,1734773479956,-800.36,0.00020273,2]
[346201626,1734773479966,-500.0,0.00020273,2]
[346201627,1734773479975,-500.0,0.00020273,2]
[346201628,1734773479985,-500.0,0.00020273,2]
[346201629,1734773479995,-500.0,0.00020273,2]
[346201630,1734773480004,-500.0,0.00020273,2]
[346201631,1734773480014,-500.0,0.00020273,2]
[346201632,1734773480029,-1122.34,0.00020273,2]
[346201633,1734773480039,-814.04,0.00020273,2]
[346201634,1734773480048,-500.0,0.00020273,2]
[346201635,1734773480058,-500.0,0.00020273,2]
[346201636,1734773480068,-552.47,0.00020273,2]
[346201637,1734773480077,-594.91,0.00020273,2]
[346201638,1734773480088,-500.0,0.00020273,2]
[346201639,1734773480097,-1064.96,0.00020273,2]
[346201640,1734773480107,-500.0,0.00020273,2]
[346201641,1734773480116,-222.85149978,0.00020273,2]
[346201642,1734773480126,-500.0,0.00020273,2]
[346201643,1734773480136,-870.97,0.00020273,2]
[346201644,1734773480145,-500.0,0.00020273,2]
[346201645,1734773480155,-500.0,0.00020273,2]
[346201646,1734773480164,-500.0,0.00020273,2]
[346201647,1734773480176,-932.63,0.00020273,2]
[346201648,1734773480185,-500.0,0.00020273,2]
[346201649,1734773480195,-500.0,0.00020273,2]
[346201650,1734773480205,-500.0,0.00020273,2]
[346201651,1734773480215,-551.58,0.00020273,2]
[346201652,1734773480224,-189.24387768,0.00020273,2]
[346201653,1734773480234,-500.0,0.00020273,2]
[346201654,1734773480248,-621.57,0.00020273,2]
[346201655,1734773480257,-500.0,0.00020273,2]
[346201656,1734773480266,-500.0,0.00020273,2]
[346201657,1734773480283,-500.0,0.00020273,2]
[346201658,1734773480293,-571.12,0.00020273,2]
[346201659,1734773480302,-608.52,0.00020273,2]
[346201660,1734773480312,-500.0,0.00020273,2]
[346201661,1734773480322,-504.83,0.00020273,2]
[346201662,1734773480331,-500.0,0.00020273,2]
[346201663,1734773480341,-500.0,0.00020273,2]
[346201664,1734773480350,-500.0,0.00020273,2]
[346201665,1734773480360,-1533.28,0.00020273,2]
[346201666,1734773480370,-553.60928334,0.00020273,2]
[346201667,1734773480379,-515.65,0.00020273,2]
[346201668,1734773480389,-500.0,0.00020273,2]
[346201669,1734773480398,-500.0,0.00020273,2]
[346201670,1734773480407,-500.0,0.00020273,2]
[346201671,1734773480416,-500.0,0.00020273,2]
[346201672,1734773480426,-156.541348,0.00020273,2]
[346201673,1734773480435,-152.561789,0.00020273,2]
[346201674,1734773480444,-1776.17307,0.00020273,2]
[346201675,1734773480453,-500.0,0.00020273,2]
[346201676,1734773480462,-687.23,0.00020273,2]
[346201677,1734773480472,-500.0,0.00020273,2]
[346201678,1734773480482,-668.01,0.00020273,2]
[346201679,1734773480491,-500.0,0.00020273,2]
[346201680,1734773480500,-500.0,0.00020273,2]
[346201681,1734773480509,-500.0,0.00020273,2]
[346201682,1734773480521,-528.77,0.00020273,2]
[346201683,1734773480533,-784.71,0.00020273,2]
[346201684,1734773480542,-500.0,0.00020273,2]
[346201685,1734773480551,-500.0,0.00020273,2]
[346201686,1734773480561,-500.0,0.00020273,2]
[346201687,1734773480570,-500.0,0.00020273,2]
[346201688,1734773480580,-500.0,0.00020273,2]
[346201689,1734773480590,-1271.57,0.00020273,2]
[346201690,1734773480599,-500.0,0.00020273,2]
[346201691,1734773480609,-500.0,0.00020273,2]
[346201692,1734773480618,-1374.17,0.00020273,2]
[346201693,1734773480627,-1127.2,0.00020273,2]
[346201694,1734773480637,-852.34,0.00020273,2]
[346201695,1734773480646,-2741.171611,0.00020273,2]
[346201696,1734773480656,-504.93,0.00020273,2]
[346201697,1734773480665,-500.0,0.00020273,2]
[346201698,1734773480675,-500.0,0.00020273,2]
[346201699,1734773480684,-500.0,0.00020273,2]
[346201700,1734773480694,-886.06,0.00020273,2]
[346201701,1734773480703,-500.0,0.00020273,2]
[346201702,1734773480713,-736.41,0.00020273,2]
[346201703,1734773480722,-500.0,0.00020273,2]
[346201704,1734773480731,-552.37,0.00020273,2]
[346201705,1734773480741,-1143.79,0.00020273,2]
[346201706,1734773480750,-500.0,0.00020273,2]
[346201707,1734773480760,-500.0,0.00020273,2]
[346201708,1734773480775,-500.0,0.00020273,2]
[346201709,1734773480784,-1053.96,0.00020273,2]
[346201710,1734773480794,-500.0,0.00020273,2]
[346201711,1734773480803,-427.54506364,0.00020273,2]
[346201712,1734773480813,-500.0,0.00020273,2]
[346201713,1734773480822,-1376.42,0.00020273,2]
[346201714,1734773480832,-500.0,0.00020273,2]
[346201715,1734773480842,-500.0,0.00020273,2]
[346201716,1734773480851,-500.0,0.00020273,2]
[346201717,1734773480861,-509.74192892,0.00020273,2]
[346201718,1734773480871,-500.0,0.00020273,2]
[346201719,1734773480880,-599.42,0.00020273,2]
[346201720,1734773480889,-500.0,0.00020273,2]
[346201721,1734773480899,-500.0,0.00020273,2]
[346201722,1734773480908,-781.07,0.00020273,2]
[346201723,1734773480918,-579.72405356,0.00020273,2]
[346201724,1734773480927,-500.0,0.00020273,2]
[346201725,1734773480937,-748.53,0.00020273,2]
[346201726,1734773480946,-500.0,0.00020273,2]
[346201727,1734773480955,-500.0,0.00020273,2]
[346201728,1734773480965,-500.0,0.00020273,2]
[346201729,1734773480975,-500.0,0.00020273,2]
[346201730,1734773480985,-755.41,0.00020273,2]
[346201731,1734773480994,-500.0,0.00020273,2]
[346201732,1734773481004,-559.95,0.00020273,2]
[346201733,1734773481014,-500.0,0.00020273,2]
[346201734,1734773481027,-1490.75,0.00020273,2]
[346201735,1734773481036,-500.0,0.00020273,2]
[346201736,1734773481045,-500.0,0.00020273,2]
[346201737,1734773481054,-500.0,0.00020273,2]
[346201738,1734773481063,-500.0,0.00020273,2]
[346201739,1734773481072,-500.0,0.00020273,2]
[346201740,1734773481082,-500.0,0.00020273,2]
[346201741,1734773481091,-687.98,0.00020273,2]
[346201742,1734773481100,-500.0,0.00020273,2]
[346201743,1734773481110,-500.0,0.00020273,2]
[346201744,1734773481119,-500.0,0.00020273,2]
[346201745,1734773481128,-656.36,0.00020273,2]
[346201746,1734773481137,-500.0,0.00020273,2]
[346201747,1734773481147,-500.0,0.00020273,2]
[346201748,1734773481156,-668.09,0.00020273,2]
[346201749,1734773481166,-500.0,0.00020273,2]
[346201750,1734773481177,-1005.06,0.00020273,2]
[346201751,1734773481186,-500.0,0.00020273,2]
[346201752,1734773481196,-500.0,0.00020273,2]
[346201753,1734773481205,-500.0,0.00020273,2]
[346201754,1734773481215,-853.8,0.00020273,2]
[346201755,1734773481224,-500.0,0.00020273,2]
[346201756,1734773481237,-500.0,0.00020273,2]
[346201757,1734773481247,-806.29,0.00020273,2]
[346201758,1734773481256,-1139.76,0.00020273,2]
[346201759,1734773481266,-543.54,0.00020273,2]
[346201760,1734773481279,-500.0,0.00020273,2]
[346201761,1734773481289,-602.77,0.00020273,2]
[346201762,1734773481298,-500.0,0.00020273,2]
[346201763,1734773481308,-845.78,0.00020273,2]
[346201764,1734773481319,-500.0,0.00020273,2]
[346201765,1734773481329,-1302.53,0.00020273,2]
[346201766,1734773481338,-500.0,0.00020273,2]
[346201767,1734773481347,-500.0,0.00020273,2]
[346201768,1734773481358,-1369.09,0.00020273,2]
[346201769,1734773481368,-500.0,0.00020273,2]
[346201770,1734773481378,-500.0,0.00020273,2]
[346201771,1734773481388,-962.8,0.00020273,2]
[346201772,1734773481397,-809.27,0.00020273,2]
[346201773,1734773481407,-500.0,0.00020273,2]
[346201774,1734773481417,-500.0,0.00020273,2]
[346201775,1734773481426,-500.0,0.00020273,2]
[346201776,1734773481436,-1375.81,0.00020273,2]
[346201777,1734773481445,-500.0,0.00020273,2]
[346201778,1734773481455,-541.05,0.00020273,2]
[346201779,1734773481464,-890.86,0.00020273,2]
[346201780,1734773481473,-500.0,0.00020273,2]
[346201781,1734773481482,-500.0,0.00020273,2]
[346201782,1734773481491,-500.0,0.00020273,2]
[346201783,1734773481501,-500.0,0.00020273,2]
[346201784,1734773481510,-500.0,0.00020273,2]
[346201785,1734773481519,-500.0,0.00020273,2]
[346201786,1734773481532,-962.15,0.00020273,2]
[346201787,1734773481542,-500.0,0.00020273,2]
[346201788,1734773481552,-500.0,0.00020273,2]
[346201789,1734773481561,-500.0,0.00020273,2]
[346201790,1734773481569,-1179.31,0.00020273,2]
[346201791,1734773481645,-1057.42,0.00020273,2]
[346201792,1734773481655,-500.0,0.00020273,2]
[346201793,1734773481664,-808.61,0.00020273,2]
[346201794,1734773481673,-1000.37,0.00020273,2]
[346201795,1734773481683,-500.0,0.00020273,2]
[346201796,1734773481692,-1022.01,0.00020273,2]
[346201797,1734773481701,-500.0,0.00020273,2]
[346201798,1734773481711,-1003.14,0.00020273,2]
[346201799,1734773481721,-768.28,0.00020273,2]
[346201800,1734773481731,-500.0,0.00020273,2]
[346201801,1734773481740,-500.0,0.00020273,2]
[346201802,1734773481749,-500.0,0.00020273,2]
[346201803,1734773481758,-500.0,0.00020273,2]
[346201804,1734773481767,-500.0,0.00020273,2]
[346201805,1734773481782,-603.92,0.00020273,2]
[346201806,1734773481792,-655.6,0.00020273,2]
[346201807,1734773481801,-910.93,0.00020273,2]
[346201808,1734773481810,-693.18,0.00020273,2]
[346201809,1734773481820,-500.0,0.00020273,2]
[346201810,1734773481830,-1405.78,0.00020273,2]
[346201811,1734773481839,-500.0,0.00020273,2]
[346201812,1734773481848,-1661.19,0.00020273,2]
[346201813,1734773481857,-569.58,0.00020273,2]
[346201814,1734773481866,-500.0,0.00020273,2]
[346201815,1734773481875,-500.0,0.00020273,2]
[346201816,1734773481885,-625.66,0.00020273,2]
[346201817,1734773481894,-500.0,0.00020273,2]
[346201818,1734773481905,-500.0,0.00020273,2]
[346201819,1734773481915,-500.0,0.00020273,2]
[346201820,1734773481926,-500.0,0.00020273,2]
[346201821,1734773481935,-815.77,0.00020273,2]
[346201822,1734773481945,-1379.55,0.00020273,2]
[346201823,1734773481954,-888.28,0.00020273,2]
[346201824,1734773481964,-7587.43,0.00020273,2]
[346201825,1734773481973,-500.0,0.00020273,2]
[346201826,1734773481983,-584.89,0.00020273,2]
[346201827,1734773481992,-500.0,0.00020273,2]
[346201828,1734773482001,-500.0,0.00020273,2]
[346201829,1734773482011,-500.0,0.00020273,2]
[346201830,1734773482021,-1621.1,0.00020273,2]
[346201831,1734773482030,-500.0,0.00020273,2]
[346201832,1734773482039,-635.11,0.00020273,2]
[346201833,1734773482049,-519.97,0.00020273,2]
[346201834,1734773482058,-500.0,0.00020273,2]
[346201835,1734773482068,-594.39,0.00020273,2]
[346201836,1734773482077,-500.0,0.00020273,2]
[346201837,1734773482087,-981.0,0.00020273,2]
[346201838,1734773482096,-540.89,0.00020273,2]
[346201839,1734773482106,-500.0,0.00020273,2]
[346201840,1734773482115,-649.72,0.00020273,2]
[346201841,1734773482125,-500.0,0.00020273,2]
[346201842,1734773482134,-500.0,0.00020273,2]
[346201843,1734773482143,-1791.49,0.00020273,2]
[346201844,1734773482153,-632.59,0.00020273,2]
[346201845,1734773482162,-500.0,0.00020273,2]
[346201846,1734773482171,-500.0,0.00020273,2]
[346201847,1734773482181,-1983.68,0.00020273,2]
[346201848,1734773482190,-500.0,0.00020273,2]
[346201849,1734773482200,-500.0,0.00020273,2]
[346201850,1734773482209,-500.0,0.00020273,2]
[346201851,1734773482218,-500.0,0.00020273,2]
[346201852,1734773482228,-500.0,0.00020273,2]
[346201853,1734773482240,-500.0,0.00020273,2]